[Event "Early-Titled-Tuesday-Blitz-February-27-2024"]
[Site "Chess.com"]
[Date "2024.02.27"]
[Round "10"]
[White "Russian_berezka"]
[Black "wild3000"]
[Result "1-0"]
[WhiteElo "2592"]
[BlackElo "2463"]
[TimeControl "180+1"]
[EndTime "9:55:25 PST"]
[Termination "Russian_berezka won on time"]

1. d4 {[%clk 0:03:00.9]} 1... Nf6 {[%clk 0:02:25.6]} 2. c4 {[%clk 0:03:00]} 2...
e6 {[%clk 0:02:25.6]} 3. Nc3 {[%clk 0:02:57.5]} 3... d5 {[%clk 0:02:24.3]} 4.
Nf3 {[%clk 0:02:56.5]} 4... Be7 {[%clk 0:02:20.2]} 5. Bg5 {[%clk 0:02:55.5]}
5... O-O {[%clk 0:02:20.2]} 6. e3 {[%clk 0:02:55.9]} 6... Nbd7 {[%clk
0:02:20.1]} 7. Qc2 {[%clk 0:02:54.7]} 7... c6 {[%clk 0:02:20.1]} 8. O-O-O {[%clk
0:02:52.3]} 8... dxc4 {[%clk 0:02:17]} 9. Bxc4 {[%clk 0:02:51.4]} 9... Nd5
{[%clk 0:02:13.2]} 10. h4 {[%clk 0:02:47.5]} 10... N7b6 {[%clk 0:02:04.4]} 11.
Be2 {[%clk 0:02:45.7]} 11... a5 {[%clk 0:01:58.9]} 12. Kb1 {[%clk 0:02:43.9]}
12... a4 {[%clk 0:01:57.7]} 13. a3 {[%clk 0:02:37.6]} 13... f6 {[%clk
0:01:48.8]} 14. Bd3 {[%clk 0:02:31.2]} 14... h6 {[%clk 0:01:42.5]} 15. Bh7+
{[%clk 0:02:14.8]} 15... Kh8 {[%clk 0:01:42.3]} 16. Bxh6 {[%clk 0:01:18.9]}
16... Nxc3+ {[%clk 0:01:36.1]} 17. bxc3 {[%clk 0:01:16.2]} 17... f5 {[%clk
0:01:14]} 18. g4 {[%clk 0:00:41.1]} 18... Kxh7 {[%clk 0:01:03.4]} 19. Bg5 {[%clk
0:00:34.7]} 19... Nc4 {[%clk 0:00:55.1]} 20. Ka2 {[%clk 0:00:30]} 20... Qd5
{[%clk 0:00:53.7]} 21. Bxe7 {[%clk 0:00:20.3]} 21... Re8 {[%clk 0:00:39.7]} 22.
Ng5+ {[%clk 0:00:20]} 22... Kg8 {[%clk 0:00:38.5]} 23. Bb4 {[%clk 0:00:04.5]}
23... Nxe3+ {[%clk 0:00:36.8]} 24. c4 {[%clk 0:00:04.6]} 24... Nxc4 {[%clk
0:00:33.9]} 25. Ka1 {[%clk 0:00:04.5]} 25... Bd7 {[%clk 0:00:15.1]} 26. Rhe1
{[%clk 0:00:04.2]} 26... b6 {[%clk 0:00:13.4]} 27. f4 {[%clk 0:00:04]} 27...
Rad8 {[%clk 0:00:09.7]} 28. h5 {[%clk 0:00:03]} 28... c5 {[%clk 0:00:06.4]} 29.
dxc5 {[%clk 0:00:02.8]} 29... Qc6 {[%clk 0:00:06.6]} 30. Qxc4 {[%clk 0:00:02.9]}
30... b5 {[%clk 0:00:06.2]} 31. Qc3 {[%clk 0:00:03]} 31... fxg4 {[%clk
0:00:04.4]} 32. h6 {[%clk 0:00:02.7]} 32... e5 {[%clk 0:00:03.9]} 33. hxg7
{[%clk 0:00:02.5]} 33... Kxg7 {[%clk 0:00:03.4]} 34. fxe5 {[%clk 0:00:02.5]}
34... Be6 {[%clk 0:00:02.8]} 35. Nxe6+ {[%clk 0:00:02.4]} 35... Qxe6 {[%clk
0:00:02.6]} 36. Rd6 {[%clk 0:00:02.7]} 36... Rxd6 {[%clk 0:00:02.3]} 37. exd6+
{[%clk 0:00:03.6]} 1-0

[Event "Early-Titled-Tuesday-Blitz-February-27-2024"]
[Site "Chess.com"]
[Date "2024.02.27"]
[Round "10"]
[White "NowInChess"]
[Black "Tugrik1969"]
[Result "0-1"]
[WhiteElo "2252"]
[BlackElo "2382"]
[TimeControl "180+1"]
[EndTime "9:55:25 PST"]
[Termination "Tugrik1969 won on time"]

1. e4 {[%clk 0:03:00.9]} 1... c5 {[%clk 0:02:58.1]} 2. d3 {[%clk 0:03:01]} 2...
g6 {[%clk 0:02:55]} 3. g3 {[%clk 0:03:01.1]} 3... Bg7 {[%clk 0:02:54.6]} 4. Bg2
{[%clk 0:03:01.7]} 4... Nc6 {[%clk 0:02:54.9]} 5. f4 {[%clk 0:03:02]} 5... d6
{[%clk 0:02:53.1]} 6. Nf3 {[%clk 0:03:02.3]} 6... b5 {[%clk 0:02:47]} 7. a4
{[%clk 0:02:59.2]} 7... b4 {[%clk 0:02:46.4]} 8. O-O {[%clk 0:02:58.7]} 8... Rb8
{[%clk 0:02:43.4]} 9. Nbd2 {[%clk 0:02:55.6]} 9... Nf6 {[%clk 0:02:40.6]} 10.
Nc4 {[%clk 0:02:52.1]} 10... O-O {[%clk 0:02:40.5]} 11. Nh4 {[%clk 0:02:47.6]}
11... d5 {[%clk 0:02:39.2]} 12. exd5 {[%clk 0:02:41]} 12... Nxd5 {[%clk
0:02:40.1]} 13. Qf3 {[%clk 0:02:16.7]} 13... e6 {[%clk 0:02:34]} 14. Kh1 {[%clk
0:02:04.7]} 14... Nd4 {[%clk 0:02:27.9]} 15. Qf2 {[%clk 0:02:04.1]} 15... Bb7
{[%clk 0:02:22.9]} 16. Ne5 {[%clk 0:01:49.4]} 16... Nb6 {[%clk 0:02:08.2]} 17.
Bxb7 {[%clk 0:01:43]} 17... Rxb7 {[%clk 0:02:09.1]} 18. a5 {[%clk 0:01:38.8]}
18... Nd7 {[%clk 0:02:00.4]} 19. a6 {[%clk 0:01:38.1]} 19... Rc7 {[%clk
0:01:59.1]} 20. Nc4 {[%clk 0:01:36.3]} 20... Qa8+ {[%clk 0:01:48.1]} 21. Kg1
{[%clk 0:01:30.4]} 21... Nb6 {[%clk 0:01:46.2]} 22. Ne5 {[%clk 0:01:03.5]} 22...
Rd8 {[%clk 0:01:30.7]} 23. Nhf3 {[%clk 0:00:54.9]} 23... Nxf3+ {[%clk
0:01:23.2]} 24. Nxf3 {[%clk 0:00:48.7]} 24... c4 {[%clk 0:01:21.8]} 25. d4
{[%clk 0:00:39.2]} 25... Nd5 {[%clk 0:00:58.6]} 26. Bd2 {[%clk 0:00:16.3]} 26...
Qc8 {[%clk 0:00:54.1]} 27. c3 {[%clk 0:00:15.8]} 27... b3 {[%clk 0:00:51.5]} 28.
Ne5 {[%clk 0:00:12.9]} 28... Rd6 {[%clk 0:00:51.4]} 29. Qe2 {[%clk 0:00:12.7]}
29... Rxa6 {[%clk 0:00:49]} 30. Rxa6 {[%clk 0:00:11.9]} 30... Qxa6 {[%clk
0:00:49.9]} 31. g4 {[%clk 0:00:08.8]} 31... f6 {[%clk 0:00:44.3]} 32. Nf3 {[%clk
0:00:07.5]} 32... Qd6 {[%clk 0:00:45]} 33. f5 {[%clk 0:00:06.8]} 33... exf5
{[%clk 0:00:42.4]} 34. gxf5 {[%clk 0:00:06.9]} 34... a5 {[%clk 0:00:39]} 35.
fxg6 {[%clk 0:00:04.7]} 35... hxg6 {[%clk 0:00:38.3]} 36. Re1 {[%clk 0:00:03.7]}
36... Qd7 {[%clk 0:00:31.3]} 37. Qe8+ {[%clk 0:00:02.6]} 37... Kh7 {[%clk
0:00:22.3]} 38. Qxd7 {[%clk 0:00:01.6]} 38... Rxd7 {[%clk 0:00:22.8]} 39. Ra1
{[%clk 0:00:02.2]} 39... Ra7 {[%clk 0:00:20.9]} 40. Kf2 {[%clk 0:00:01.9]} 40...
a4 {[%clk 0:00:20.2]} 41. Be3 {[%clk 0:00:01.9]} 41... f5 {[%clk 0:00:20.1]} 42.
Nd2 {[%clk 0:00:01.6]} 42... a3 {[%clk 0:00:19.1]} 0-1

[Event "Early-Titled-Tuesday-Blitz-February-27-2024"]
[Site "Chess.com"]
[Date "2024.02.27"]
[Round "10"]
[White "BeardedNM"]
[Black "EvgenyBurmakin"]
[Result "0-1"]
[WhiteElo "2234"]
[BlackElo "2343"]
[TimeControl "180+1"]
[EndTime "9:55:25 PST"]
[Termination "EvgenyBurmakin won on time"]

1. e4 {[%clk 0:02:56.4]} 1... c5 {[%clk 0:02:59.7]} 2. Nf3 {[%clk 0:02:56.3]}
2... d6 {[%clk 0:03:00]} 3. d4 {[%clk 0:02:57]} 3... cxd4 {[%clk 0:02:59.8]} 4.
Nxd4 {[%clk 0:02:57.9]} 4... Nf6 {[%clk 0:03:00.1]} 5. Nc3 {[%clk 0:02:58.2]}
5... a6 {[%clk 0:03:00.4]} 6. Be3 {[%clk 0:02:58]} 6... e5 {[%clk 0:03:00.7]} 7.
Nb3 {[%clk 0:02:58.5]} 7... Be6 {[%clk 0:03:00.8]} 8. f3 {[%clk 0:02:59]} 8...
Be7 {[%clk 0:03:00.3]} 9. Qd2 {[%clk 0:02:59.5]} 9... Nbd7 {[%clk 0:03:00.2]}
10. O-O-O {[%clk 0:02:59.9]} 10... O-O {[%clk 0:02:59.4]} 11. g4 {[%clk
0:03:00.1]} 11... b5 {[%clk 0:02:59.4]} 12. Rg1 {[%clk 0:03:00.6]} 12... Nb6
{[%clk 0:02:55.5]} 13. Na5 {[%clk 0:03:00.1]} 13... b4 {[%clk 0:02:36.7]} 14.
Nc6 {[%clk 0:02:36.2]} 14... bxc3 {[%clk 0:02:34.1]} 15. Qxc3 {[%clk 0:02:20.9]}
15... Qc7 {[%clk 0:02:02]} 16. Nxe7+ {[%clk 0:01:53.1]} 16... Qxe7 {[%clk
0:02:02.9]} 17. Bxb6 {[%clk 0:01:53.3]} 17... Rfc8 {[%clk 0:02:01]} 18. Qa3
{[%clk 0:01:32.4]} 18... Ne8 {[%clk 0:01:58.6]} 19. Ba5 {[%clk 0:00:57.6]} 19...
Qa7 {[%clk 0:01:45.4]} 20. Rg2 {[%clk 0:00:49.8]} 20... Rab8 {[%clk 0:01:41.8]}
21. Rgd2 {[%clk 0:00:39.5]} 21... h6 {[%clk 0:01:27.6]} 22. Bb4 {[%clk
0:00:30.7]} 22... Qb6 {[%clk 0:01:00.7]} 23. Bxd6 {[%clk 0:00:28.9]} 23... Rb7
{[%clk 0:00:52.2]} 24. Bxe5 {[%clk 0:00:12.4]} 24... f6 {[%clk 0:00:47.3]} 25.
Bd4 {[%clk 0:00:11.6]} 25... Qc7 {[%clk 0:00:41.7]} 26. Bxa6 {[%clk 0:00:11.4]}
26... Ra8 {[%clk 0:00:39.5]} 27. Qd3 {[%clk 0:00:06.7]} 27... Rbb8 {[%clk
0:00:36.2]} 28. b3 {[%clk 0:00:03.6]} 28... Rd8 {[%clk 0:00:33.8]} 29. Bc4
{[%clk 0:00:03.2]} 29... Bxc4 {[%clk 0:00:23.7]} 30. Qxc4+ {[%clk 0:00:04.1]}
30... Qxc4 {[%clk 0:00:23.9]} 31. bxc4 {[%clk 0:00:05]} 31... Rxa2 {[%clk
0:00:23.9]} 32. Bb6 {[%clk 0:00:05.3]} 32... Ra1+ {[%clk 0:00:19.2]} 33. Kb2
{[%clk 0:00:05.3]} 33... Rxd1 {[%clk 0:00:20]} 34. Rxd8 {[%clk 0:00:04]} 34...
Rxd8 {[%clk 0:00:16.5]} 35. Bxd8 {[%clk 0:00:04.9]} 35... Kf7 {[%clk 0:00:15.8]}
36. Kc3 {[%clk 0:00:05]} 36... Ke6 {[%clk 0:00:16.2]} 37. Ba5 {[%clk 0:00:04]}
37... Nd6 {[%clk 0:00:16]} 38. Bb4 {[%clk 0:00:04]} 38... Nf7 {[%clk 0:00:16.2]}
39. Kd4 {[%clk 0:00:04.1]} 39... Ne5 {[%clk 0:00:16.3]} 40. Bc3 {[%clk
0:00:01.8]} 40... Nxf3+ {[%clk 0:00:16.1]} 41. Ke3 {[%clk 0:00:02.7]} 41... Nxh2
{[%clk 0:00:16.1]} 42. c5 {[%clk 0:00:02]} 42... Nxg4+ {[%clk 0:00:16.1]} 43.
Kf4 {[%clk 0:00:01.8]} 43... h5 {[%clk 0:00:14.8]} 0-1

[Event "Early-Titled-Tuesday-Blitz-February-27-2024"]
[Site "Chess.com"]
[Date "2024.02.27"]
[Round "10"]
[White "ChessLover0108"]
[Black "stollenmonster"]
[Result "1-0"]
[WhiteElo "2972"]
[BlackElo "2882"]
[TimeControl "180+1"]
[EndTime "9:55:30 PST"]
[Termination "ChessLover0108 won by resignation"]

1. Nf3 {[%clk 0:03:00.9]} 1... Nf6 {[%clk 0:02:59.7]} 2. c4 {[%clk 0:03:01]}
2... e6 {[%clk 0:03:00.6]} 3. Nc3 {[%clk 0:03:01.2]} 3... d5 {[%clk 0:03:01.5]}
4. d4 {[%clk 0:03:01.9]} 4... Ne4 {[%clk 0:03:01.8]} 5. Qc2 {[%clk 0:02:59.1]}
5... f5 {[%clk 0:03:02.1]} 6. Bf4 {[%clk 0:02:58.6]} 6... c6 {[%clk 0:03:02.4]}
7. e3 {[%clk 0:02:58.6]} 7... Be7 {[%clk 0:03:03]} 8. g4 {[%clk 0:02:39.1]} 8...
O-O {[%clk 0:02:58.8]} 9. gxf5 {[%clk 0:02:36.9]} 9... exf5 {[%clk 0:02:58.9]}
10. Bd3 {[%clk 0:02:15.9]} 10... Qa5 {[%clk 0:02:50.9]} 11. O-O {[%clk
0:02:03.9]} 11... Be6 {[%clk 0:02:42.9]} 12. cxd5 {[%clk 0:01:33.7]} 12... cxd5
{[%clk 0:02:43.8]} 13. Qb3 {[%clk 0:01:30.1]} 13... Nd7 {[%clk 0:01:26.7]} 14.
Qxb7 {[%clk 0:01:03.7]} 14... Nxc3 {[%clk 0:01:09.6]} 15. bxc3 {[%clk
0:01:02.6]} 15... Qxc3 {[%clk 0:01:10.5]} 16. Bb5 {[%clk 0:01:02.5]} 16... Qc8
{[%clk 0:01:08.4]} 17. Bc6 {[%clk 0:00:53.6]} 17... Qxb7 {[%clk 0:01:00.7]} 18.
Bxb7 {[%clk 0:00:54.5]} 18... Rae8 {[%clk 0:00:58.9]} 19. a4 {[%clk 0:00:44.9]}
19... h6 {[%clk 0:00:52.8]} 20. Bc7 {[%clk 0:00:16.8]} 20... Rf7 {[%clk
0:00:47.3]} 21. a5 {[%clk 0:00:14.3]} 21... g5 {[%clk 0:00:44.6]} 22. Rac1
{[%clk 0:00:14.4]} 22... f4 {[%clk 0:00:40.8]} 23. exf4 {[%clk 0:00:15.3]} 23...
gxf4 {[%clk 0:00:41.1]} 24. Kh1 {[%clk 0:00:15.7]} 24... Nf6 {[%clk 0:00:32]}
25. Rg1+ {[%clk 0:00:13.5]} 25... Rg7 {[%clk 0:00:29.2]} 26. Rxg7+ {[%clk
0:00:13.2]} 26... Kxg7 {[%clk 0:00:30.1]} 27. Ne5 {[%clk 0:00:14.1]} 27... Ba3
{[%clk 0:00:20.5]} 28. Rg1+ {[%clk 0:00:13.6]} 28... Kh7 {[%clk 0:00:21]} 29. f3
{[%clk 0:00:10.6]} 29... Bb2 {[%clk 0:00:18.2]} 30. Nc6 {[%clk 0:00:05.8]} 30...
Bf5 {[%clk 0:00:13.4]} 31. Bxf4 {[%clk 0:00:05.2]} 31... Ng4 {[%clk 0:00:13.4]}
32. Rxg4 {[%clk 0:00:04]} 32... Bxg4 {[%clk 0:00:13.2]} 33. fxg4 {[%clk
0:00:04.9]} 33... Re4 {[%clk 0:00:13.3]} 34. Bb8 {[%clk 0:00:01.9]} 34... Re2
{[%clk 0:00:13.6]} 35. h3 {[%clk 0:00:01.9]} 35... Bc1 {[%clk 0:00:13.8]} 36. a6
{[%clk 0:00:02.5]} 36... h5 {[%clk 0:00:13.6]} 37. gxh5 {[%clk 0:00:02.6]} 37...
Bg5 {[%clk 0:00:13.5]} 38. Bxa7 {[%clk 0:00:03.1]} 38... Bf4 {[%clk 0:00:13.2]}
39. Bb8 {[%clk 0:00:03.4]} 39... Bxb8 {[%clk 0:00:11.4]} 40. Nxb8 {[%clk
0:00:04.3]} 40... Ra2 {[%clk 0:00:10.7]} 41. Nc6 {[%clk 0:00:04.7]} 41... Kh6
{[%clk 0:00:09.9]} 42. a7 {[%clk 0:00:05.3]} 42... Kxh5 {[%clk 0:00:09.6]} 43.
a8=Q {[%clk 0:00:05.5]} 1-0

[Event "Early-Titled-Tuesday-Blitz-February-27-2024"]
[Site "Chess.com"]
[Date "2024.02.27"]
[Round "10"]
[White "Mikhail_Golubev"]
[Black "sokidze"]
[Result "0-1"]
[WhiteElo "2632"]
[BlackElo "2777"]
[TimeControl "180+1"]
[EndTime "9:55:33 PST"]
[Termination "sokidze won on time"]

1. e4 {[%clk 0:03:00.9]} 1... c6 {[%clk 0:02:59.6]} 2. Nf3 {[%clk 0:02:58.3]}
2... d5 {[%clk 0:02:59.3]} 3. Nc3 {[%clk 0:02:59]} 3... dxe4 {[%clk 0:02:58.1]}
4. Nxe4 {[%clk 0:02:58.7]} 4... Nf6 {[%clk 0:02:58.7]} 5. Qe2 {[%clk 0:02:58.5]}
5... Na6 {[%clk 0:02:53.1]} 6. d4 {[%clk 0:02:46]} 6... Nxe4 {[%clk 0:02:48.7]}
7. Qxe4 {[%clk 0:02:45.8]} 7... Qd5 {[%clk 0:02:49.5]} 8. Qxd5 {[%clk
0:02:29.6]} 8... cxd5 {[%clk 0:02:49.6]} 9. Bb5+ {[%clk 0:02:28.2]} 9... Bd7
{[%clk 0:02:49.1]} 10. Bxa6 {[%clk 0:02:28.3]} 10... bxa6 {[%clk 0:02:49.1]} 11.
Ne5 {[%clk 0:02:27.7]} 11... Bf5 {[%clk 0:02:43.6]} 12. c3 {[%clk 0:02:25.2]}
12... f6 {[%clk 0:02:39.3]} 13. Nf3 {[%clk 0:02:23.2]} 13... e6 {[%clk
0:02:34.1]} 14. O-O {[%clk 0:02:22]} 14... Bd6 {[%clk 0:02:31.6]} 15. Re1 {[%clk
0:02:20.7]} 15... Kf7 {[%clk 0:02:20.2]} 16. b3 {[%clk 0:02:17.2]} 16... Rhc8
{[%clk 0:02:16.5]} 17. Bb2 {[%clk 0:02:10.1]} 17... a5 {[%clk 0:02:13.3]} 18.
Nd2 {[%clk 0:01:57]} 18... Rab8 {[%clk 0:02:05]} 19. g3 {[%clk 0:01:48.4]} 19...
a4 {[%clk 0:01:58.5]} 20. Rac1 {[%clk 0:01:43.1]} 20... a5 {[%clk 0:01:48]} 21.
c4 {[%clk 0:01:34.8]} 21... axb3 {[%clk 0:01:07.9]} 22. axb3 {[%clk 0:01:34.1]}
22... a4 {[%clk 0:00:53.8]} 23. cxd5 {[%clk 0:01:22.7]} 23... a3 {[%clk
0:00:38.8]} 24. dxe6+ {[%clk 0:00:36.6]} 24... Bxe6 {[%clk 0:00:39.7]} 25. Bc3
{[%clk 0:00:31.3]} 25... Bd5 {[%clk 0:00:28.5]} 26. Re3 {[%clk 0:00:24.2]} 26...
Bxb3 {[%clk 0:00:19.1]} 27. Ne4 {[%clk 0:00:24.1]} 27... Bf8 {[%clk 0:00:18.7]}
28. Nc5 {[%clk 0:00:24.1]} 28... Bxc5 {[%clk 0:00:18.3]} 29. dxc5 {[%clk
0:00:24.4]} 29... Rxc5 {[%clk 0:00:19.2]} 30. Rce1 {[%clk 0:00:20.5]} 30... Rb7
{[%clk 0:00:15.7]} 31. Ba1 {[%clk 0:00:16.6]} 31... Bd5 {[%clk 0:00:13.7]} 32.
Rxa3 {[%clk 0:00:14.7]} 32... h5 {[%clk 0:00:08.7]} 33. Rc3 {[%clk 0:00:14.9]}
33... Rcb5 {[%clk 0:00:08.4]} 34. Rce3 {[%clk 0:00:13.9]} 34... h4 {[%clk
0:00:07.4]} 35. Bc3 {[%clk 0:00:13.4]} 35... h3 {[%clk 0:00:06.7]} 36. R3e2
{[%clk 0:00:13]} 36... g5 {[%clk 0:00:05.8]} 37. Rd2 {[%clk 0:00:12.8]} 37... g4
{[%clk 0:00:05.5]} 38. Bd4 {[%clk 0:00:11.9]} 38... Bf3 {[%clk 0:00:05.7]} 39.
Be3 {[%clk 0:00:11.5]} 39... Rb1 {[%clk 0:00:05.8]} 40. Rd7+ {[%clk 0:00:05.1]}
40... Kg6 {[%clk 0:00:06.5]} 0-1

[Event "Early-Titled-Tuesday-Blitz-February-27-2024"]
[Site "Chess.com"]
[Date "2024.02.27"]
[Round "10"]
[White "C_K_G"]
[Black "Canal_Showdrez"]
[Result "1-0"]
[WhiteElo "2168"]
[BlackElo "1995"]
[TimeControl "180+1"]
[EndTime "9:55:33 PST"]
[Termination "C_K_G won by checkmate"]

1. e4 {[%clk 0:03:00.9]} 1... c5 {[%clk 0:02:54.9]} 2. Nf3 {[%clk 0:03:00.8]}
2... Nc6 {[%clk 0:02:55.4]} 3. d4 {[%clk 0:03:00.7]} 3... cxd4 {[%clk
0:02:56.3]} 4. Nxd4 {[%clk 0:03:01]} 4... Nf6 {[%clk 0:02:55.2]} 5. Nc3 {[%clk
0:03:01]} 5... e5 {[%clk 0:02:55]} 6. Ndb5 {[%clk 0:03:00.1]} 6... d6 {[%clk
0:02:54.4]} 7. Bg5 {[%clk 0:02:59.2]} 7... a6 {[%clk 0:02:54.8]} 8. Na3 {[%clk
0:02:58.5]} 8... b5 {[%clk 0:02:55.4]} 9. Nd5 {[%clk 0:02:56.8]} 9... Be7 {[%clk
0:02:56]} 10. Bxf6 {[%clk 0:02:54.9]} 10... Bxf6 {[%clk 0:02:56.9]} 11. c4
{[%clk 0:02:55.2]} 11... b4 {[%clk 0:02:53.1]} 12. Nc2 {[%clk 0:02:55.1]} 12...
a5 {[%clk 0:02:53.2]} 13. Bd3 {[%clk 0:02:51.6]} 13... O-O {[%clk 0:02:49.3]}
14. O-O {[%clk 0:02:51.7]} 14... Be6 {[%clk 0:02:47.6]} 15. Nce3 {[%clk
0:02:50.3]} 15... Nd4 {[%clk 0:02:43.7]} 16. Rc1 {[%clk 0:02:41.3]} 16... Bg5
{[%clk 0:02:35.3]} 17. c5 {[%clk 0:02:35]} 17... Rc8 {[%clk 0:02:16.8]} 18. cxd6
{[%clk 0:02:24.9]} 18... Rxc1 {[%clk 0:02:10.1]} 19. Qxc1 {[%clk 0:02:25]} 19...
Bxd5 {[%clk 0:02:08.9]} 20. exd5 {[%clk 0:02:21.8]} 20... e4 {[%clk 0:02:08.2]}
21. Qc5 {[%clk 0:02:12.9]} 21... exd3 {[%clk 0:01:54.8]} 22. Qxd4 {[%clk
0:02:12.4]} 22... Qxd6 {[%clk 0:01:52.8]} 23. Qxd3 {[%clk 0:02:12.2]} 23... a4
{[%clk 0:01:44.1]} 24. Nf5 {[%clk 0:02:10.3]} 24... Qe5 {[%clk 0:01:41.9]} 25.
b3 {[%clk 0:01:53.8]} 25... Rd8 {[%clk 0:01:37]} 26. Rd1 {[%clk 0:01:35.6]}
26... axb3 {[%clk 0:01:34.6]} 27. axb3 {[%clk 0:01:34.9]} 27... Qc3 {[%clk
0:01:34.5]} 28. g3 {[%clk 0:01:29.9]} 28... g6 {[%clk 0:01:30.9]} 29. h4 {[%clk
0:01:15.9]} 29... Bf6 {[%clk 0:01:13.3]} 30. Ne3 {[%clk 0:01:13.6]} 30... h5
{[%clk 0:01:02.7]} 31. d6 {[%clk 0:01:11]} 31... g5 {[%clk 0:00:32.6]} 32. Nd5
{[%clk 0:00:47.6]} 32... Qe5 {[%clk 0:00:29.1]} 33. hxg5 {[%clk 0:00:37.7]}
33... Bxg5 {[%clk 0:00:26.7]} 34. f4 {[%clk 0:00:32.4]} 34... Bxf4 {[%clk
0:00:23.7]} 35. Nxf4 {[%clk 0:00:31.8]} 35... h4 {[%clk 0:00:20.6]} 36. Qd4
{[%clk 0:00:25.6]} 36... Qg5 {[%clk 0:00:19.2]} 37. Rd3 {[%clk 0:00:15.3]} 37...
hxg3 {[%clk 0:00:18.5]} 38. Kg2 {[%clk 0:00:14.2]} 38... Ra8 {[%clk 0:00:17.2]}
39. Rxg3 {[%clk 0:00:12.7]} 39... Ra2+ {[%clk 0:00:16.3]} 40. Kh3 {[%clk
0:00:12.4]} 40... Rd2 {[%clk 0:00:13.9]} 41. Qxd2 {[%clk 0:00:10.8]} 41... Qxg3+
{[%clk 0:00:13.2]} 42. Kxg3 {[%clk 0:00:11.1]} 42... f6 {[%clk 0:00:13.7]} 43.
Qxb4 {[%clk 0:00:11.4]} 43... Kf7 {[%clk 0:00:14.6]} 44. Qe4 {[%clk 0:00:11.5]}
44... Kg7 {[%clk 0:00:15.5]} 45. Qg6+ {[%clk 0:00:11.7]} 45... Kf8 {[%clk
0:00:16.4]} 46. Qxf6+ {[%clk 0:00:12.3]} 46... Ke8 {[%clk 0:00:17.1]} 47. Qe7#
{[%clk 0:00:12.6]} 1-0

[Event "Early-Titled-Tuesday-Blitz-February-27-2024"]
[Site "Chess.com"]
[Date "2024.02.27"]
[Round "10"]
[White "Kristof_08"]
[Black "ImportedItalianMaple"]
[Result "1-0"]
[WhiteElo "2444"]
[BlackElo "2528"]
[TimeControl "180+1"]
[EndTime "9:55:36 PST"]
[Termination "Kristof_08 won by resignation"]

1. Nf3 {[%clk 0:03:00.9]} 1... Nf6 {[%clk 0:02:59.4]} 2. c4 {[%clk 0:03:01.2]}
2... c6 {[%clk 0:02:54.1]} 3. d4 {[%clk 0:02:55]} 3... d5 {[%clk 0:02:54.4]} 4.
g3 {[%clk 0:02:55.4]} 4... Bf5 {[%clk 0:02:47.9]} 5. Nc3 {[%clk 0:02:55]} 5...
e6 {[%clk 0:02:47.8]} 6. Nh4 {[%clk 0:02:54.8]} 6... Bg4 {[%clk 0:02:21.9]} 7.
h3 {[%clk 0:02:50.9]} 7... Bh5 {[%clk 0:02:22.2]} 8. Qb3 {[%clk 0:02:50.1]} 8...
Qb6 {[%clk 0:02:19.8]} 9. g4 {[%clk 0:02:49.7]} 9... Bg6 {[%clk 0:02:19.1]} 10.
Nxg6 {[%clk 0:02:49.9]} 10... hxg6 {[%clk 0:02:20]} 11. Bg2 {[%clk 0:02:50.4]}
11... Bd6 {[%clk 0:02:06.3]} 12. c5 {[%clk 0:02:45.5]} 12... Qxb3 {[%clk
0:02:06.5]} 13. axb3 {[%clk 0:02:45.6]} 13... Be7 {[%clk 0:02:03.9]} 14. b4
{[%clk 0:02:46.5]} 14... O-O {[%clk 0:02:00.6]} 15. b5 {[%clk 0:02:41.9]} 15...
Nbd7 {[%clk 0:01:52.7]} 16. Bf4 {[%clk 0:02:37.9]} 16... Rfc8 {[%clk 0:01:41.6]}
17. bxc6 {[%clk 0:02:36.6]} 17... Rxc6 {[%clk 0:01:40]} 18. b4 {[%clk
0:02:36.4]} 18... Rcc8 {[%clk 0:01:31.3]} 19. e4 {[%clk 0:02:36.2]} 19... dxe4
{[%clk 0:01:27.1]} 20. Nxe4 {[%clk 0:02:33.9]} 20... Nd5 {[%clk 0:01:27.8]} 21.
Bd6 {[%clk 0:02:34.1]} 21... Bf6 {[%clk 0:01:23.7]} 22. Nxf6+ {[%clk 0:02:28.4]}
22... N7xf6 {[%clk 0:01:24.6]} 23. O-O {[%clk 0:02:21.2]} 23... Ne8 {[%clk
0:01:13.6]} 24. Bg3 {[%clk 0:02:12.7]} 24... b6 {[%clk 0:01:10.5]} 25. Ra6
{[%clk 0:02:00.2]} 25... Nec7 {[%clk 0:00:53.7]} 26. Bxc7 {[%clk 0:01:54.1]}
26... Rxc7 {[%clk 0:00:46.8]} 27. cxb6 {[%clk 0:01:51.3]} 27... Rb7 {[%clk
0:00:44.3]} 28. Rfa1 {[%clk 0:01:32]} 28... Kf8 {[%clk 0:00:38.4]} 29. Rxa7
{[%clk 0:01:25.8]} 29... Rab8 {[%clk 0:00:38.8]} 30. Rxb7 {[%clk 0:01:16]} 30...
Rxb7 {[%clk 0:00:39.1]} 31. Bxd5 {[%clk 0:01:16.5]} 31... exd5 {[%clk 0:00:37]}
32. Ra6 {[%clk 0:01:17.1]} 32... Ke7 {[%clk 0:00:36.7]} 33. b5 {[%clk
0:01:13.2]} 33... Kd7 {[%clk 0:00:35]} 34. Kg2 {[%clk 0:01:12.8]} 34... Kc8
{[%clk 0:00:32.5]} 35. Ra8+ {[%clk 0:01:11.7]} 35... Rb8 {[%clk 0:00:29.8]} 36.
Rxb8+ {[%clk 0:00:42.2]} 36... Kxb8 {[%clk 0:00:30.7]} 37. h4 {[%clk 0:00:36.9]}
37... Kb7 {[%clk 0:00:29.6]} 38. Kf3 {[%clk 0:00:36.4]} 38... Kxb6 {[%clk
0:00:25.5]} 39. Kf4 {[%clk 0:00:36.4]} 39... Kxb5 {[%clk 0:00:26.1]} 40. Ke5
{[%clk 0:00:37.1]} 40... Kc4 {[%clk 0:00:26.6]} 41. g5 {[%clk 0:00:36.2]} 41...
f6+ {[%clk 0:00:23.5]} 42. gxf6 {[%clk 0:00:35.3]} 42... gxf6+ {[%clk
0:00:24.4]} 43. Kxf6 {[%clk 0:00:36]} 43... Kxd4 {[%clk 0:00:25.3]} 44. Kxg6
{[%clk 0:00:36.6]} 44... Ke4 {[%clk 0:00:22.5]} 45. h5 {[%clk 0:00:34.5]} 45...
d4 {[%clk 0:00:23.1]} 46. h6 {[%clk 0:00:35]} 46... d3 {[%clk 0:00:23.8]} 47. h7
{[%clk 0:00:35.9]} 47... d2 {[%clk 0:00:24.3]} 48. h8=Q {[%clk 0:00:36.8]} 48...
d1=Q {[%clk 0:00:24.6]} 49. Qe8+ {[%clk 0:00:36.2]} 49... Kf3 {[%clk 0:00:23.6]}
50. Qf7+ {[%clk 0:00:36.2]} 50... Ke4 {[%clk 0:00:14.7]} 51. Qb7+ {[%clk
0:00:19.5]} 51... Kf4 {[%clk 0:00:13.7]} 52. Qf7+ {[%clk 0:00:18.8]} 52... Ke4
{[%clk 0:00:13.8]} 53. Qe6+ {[%clk 0:00:18.7]} 53... Kf3 {[%clk 0:00:13.3]} 54.
Qf5+ {[%clk 0:00:19.1]} 54... Ke2 {[%clk 0:00:12.4]} 55. Qg4+ {[%clk 0:00:18.9]}
1-0